bitfinex-derivatives/quotes_ETHF0:USTF0_20251012
["timestamp","ask_amount","ask_price","bid_price","bid_amount"]
[1760257614199,5.76340428,3845.3,3845.2,0.00253082]
[1760257615690,5.76340428,3845.3,3845.2,0.44333082]
[1760257616091,5.76340428,3845.3,3845.2,0.00253082]
[1760257619199,6.35936979,3845.3,3843.9,3.5383]
[1760257619404,0.8342,3844.4,3844.3,0.4408]
[1760257619705,0.8342,3844.4,3844.3,1.23909]
[1760257620106,4.77047449,3844.4,3844.3,1.23909]
[1760257620399,4.17067449,3844.4,3844.3,4.45001063]
[1760257620705,0.5977,3845.0,3844.9,1.23903]
[1760257620898,1.12014464,3845.0,3844.9,4.44683]
[1760257621299,1.35664464,3845.0,3844.9,4.11633]
[1760257622301,1.50054464,3845.0,3844.9,4.11633]
[1760257623004,1.50054464,3845.0,3844.9,0.90853]
[1760257625802,0.36602515,3845.3,3845.2,1.23899]
[1760257626103,0.83692515,3845.3,3845.2,3.2078]
[1760257626305,1.30193,3844.9,3844.8,3.2078]
[1760257626498,0.8342,3844.4,3844.3,3.43002063]
[1760257626701,1.30199,3844.4,3844.3,0.22222063]
[1760257627102,0.8342,3844.4,3844.3,0.91172063]
[1760257627297,0.2344,3844.4,3844.3,1.24222063]
[1760257627804,0.5977,3844.4,3844.3,1.24222063]
[1760257629013,41.1633,3844.6,3844.5,1.23907]
[1760257629205,41.3977,3844.6,3844.5,1.23907]
[1760257629407,41.92014464,3844.6,3844.5,1.23907]
[1760257629601,42.15664464,3844.6,3844.5,1.23907]
[1760257629806,42.62440464,3844.6,3844.5,0.90857]
[1760257630006,42.15664464,3844.6,3844.5,0.68687]
[1760257630306,42.62440464,3844.6,3844.5,0.46777]
[1760257630513,1.27319,3844.4,3844.3,0.00312063]
[1760257630708,5.73190913,3844.4,3844.3,0.00312063]
[1760257634722,0.2357,3843.4,3843.3,0.46792]
[1760257634922,5.73202913,3843.4,3843.3,0.237]
[1760257635108,1.27332,3843.3,3843.2,3.2078]
[1760257635312,1.79576464,3843.3,3843.2,3.2078]
[1760257635716,1.79576464,3843.3,3843.2,3.21102118]
[1760257636022,5.73203913,3843.3,3843.2,0.00322118]
[1760257638313,5.73203913,3843.3,3843.2,0.46122118]
[1760257640322,5.73203913,3843.3,3843.2,0.92915118]
[1760257640719,5.73203913,3843.3,3843.2,0.46122118]
[1760257641022,5.73203913,3843.3,3843.2,0.24022118]
[1760257641422,5.73203913,3843.3,3843.2,0.46122118]
[1760257641926,5.73203913,3843.3,3843.2,0.24022118]
[1760257642617,5.73203913,3843.3,3843.2,0.70815118]
[1760257642815,5.73203913,3843.3,3843.2,0.00322118]
[1760257643318,8.93983913,3843.3,3843.2,0.00322118]
[1760257643622,0.468,3842.7,3842.5,3.2078]
[1760257643828,1.27341,3842.6,3842.5,3.4448]
[1760257644720,5.73466805,3842.6,3842.5,0.00280433]
[1760257654327,0.80793892,3842.6,3842.5,4.47392433]
[1760257654731,1.27594892,3842.6,3842.5,3.66860433]
[1760257655430,1.27594892,3842.6,3842.5,4.13662433]
[1760257655626,0.34743892,3842.6,3842.5,9.47392433]
[1760257655826,0.57223892,3842.6,3842.5,4.47392433]
[1760257656027,0.80793892,3842.6,3842.5,4.47392433]
[1760257657430,1.27594892,3842.6,3842.5,4.47392433]
[1760257657732,0.80793892,3842.6,3842.5,4.47392433]
[1760257657932,1.27594892,3842.6,3842.5,4.47392433]
[1760257659839,0.80793892,3842.6,3842.5,4.47392433]
[1760257660734,1.27594892,3842.6,3842.5,3.91562433]
[1760257662035,5.73466805,3842.6,3842.5,3.21060433]
[1760257662429,1.79839356,3842.6,3842.5,3.21060433]
[1760257662632,1.79839356,3842.6,3842.5,3.67862433]
[1760257662834,1.79839356,3842.6,3842.5,3.90972433]
[1760257664534,1.79839356,3842.6,3842.5,3.67862433]
[1760257664937,5.73466805,3842.6,3842.5,3.21060433]
[1760257665638,5.73466805,3842.6,3842.5,3.67862433]
[1760257666133,5.21222341,3842.6,3842.5,3.67862433]
[1760257666339,5.73466805,3842.6,3842.5,3.67862433]
[1760257666539,5.73466805,3842.6,3842.5,3.21060433]
[1760257669739,0.454,3842.2,3842.1,0.46806]
[1760257669933,1.32124464,3842.2,3842.1,3.67586]
[1760257670135,0.7988,3842.2,3842.1,4.50116]
[1760257670731,0.7988,3842.2,3842.1,4.50366633]
[1760257671236,0.1432,3842.5,3842.4,0.46803]
[1760257671443,0.5972,3842.5,3842.4,0.71013]
[1760257671636,4.53347449,3842.5,3842.4,0.71013]
[1760257671837,5.40071913,3842.5,3842.4,0.71013]
[1760257672638,0.942,3842.5,3842.4,1.29333]
[1760257672843,0.5738,3842.5,3842.4,1.29333]
[1760257673236,0.7988,3842.5,3842.4,1.29333]
[1760257673432,0.942,3842.5,3842.4,0.71013]
[1760257673636,0.942,3842.5,3842.1,3.92047633]
[1760257673637,0.7988,3842.2,3842.1,3.92047633]
[1760257674041,0.7988,3842.2,3842.1,4.14257633]
[1760257674237,0.7988,3842.2,3842.1,4.50367633]
[1760257674636,0.7988,3842.2,3842.1,4.14257633]
[1760257675448,4.73507449,3842.2,3842.1,3.92047633]
[1760257676749,5.25751913,3842.2,3842.1,3.92047633]
[1760257677649,5.25751913,3842.2,3842.1,3.67837633]
[1760257678250,5.25751913,3842.2,3842.1,3.92047633]
[1760257679749,5.25751913,3842.2,3842.1,4.50367633]
[1760257679951,4.73507449,3842.2,3842.1,4.50367633]
[1760257681054,0.7988,3842.2,3842.1,4.50367633]
[1760257681354,0.5738,3842.2,3842.1,4.50367633]
[1760257681847,0.00253892,3842.6,3842.5,0.2421]
[1760257682055,0.454,3842.2,3842.1,3.92047633]
[1760257682453,5.20312449,3842.2,3842.1,3.92047633]
[1760257682650,5.72556913,3842.2,3842.1,0.00250633]
[1760257683053,6.40172963,3842.2,3842.1,0.00250633]
[1760257683253,46.52556913,3842.2,3842.1,0.00250633]
[1760257684854,46.54387742,3842.2,3842.1,0.00250633]
[1760257689355,0.46812,3841.7,3841.6,0.46813]
[1760257689658,1.78936464,3841.7,3841.6,0.46813]
[1760257689860,1.28522829,3841.7,3841.6,0.46813]
[1760257690052,1.80767293,3841.7,3841.6,0.46813]
[1760257690557,1.80767293,3841.7,3841.6,0.47147985]
[1760257690960,0.7189,3840.5,3840.4,1.25987]
[1760257691258,0.52244464,3840.9,3840.7,0.46823]
[1760257691559,0.586,3840.8,3840.7,1.25983]
[1760257691759,0.82340829,3840.8,3840.7,1.25983]
[1760257692059,0.82340829,3840.8,3840.7,1.26184653]
[1760257692360,0.82340829,3840.8,3840.7,0.92814653]
[1760257693254,0.82340829,3840.8,3840.7,1.26184653]
[1760257693753,0.82340829,3840.8,3840.7,0.00201653]
[1760257693956,0.82340829,3840.8,3840.7,0.47025653]
[1760257694956,0.84409359,3840.8,3840.7,0.47025653]
[1760257696765,0.84409359,3840.8,3840.7,0.92815653]
[1760257697963,0.84409359,3840.8,3840.7,0.47025653]
[1760257698163,1.36653823,3840.8,3840.7,0.47025653]
[1760257699367,0.84409359,3840.8,3840.7,1.26185653]
[1760257700167,1.36653823,3840.8,3840.7,1.26185653]
[1760257702267,3.787,3841.5,3841.4,1.25975]
[1760257702868,45.46824464,3841.5,3841.4,0.92605]
[1760257706764,42.26044464,3841.5,3841.4,0.92605]
[1760257707171,1.46044464,3841.5,3841.4,1.25975]
[1760257707371,0.938,3841.5,3841.4,1.25975]
[1760257707569,0.2272,3841.9,3841.8,0.926]
[1760257707770,0.2272,3841.9,3841.8,1.2597]
[1760257708069,0.4463,3841.9,3841.8,1.2597]
[1760257709771,0.8051,3841.9,3841.8,1.2597]
[1760257710473,0.8051,3842.2,3842.1,1.25967]
[1760257714372,0.8051,3842.2,3842.1,0.68697]
[1760257715067,0.8051,3842.2,3842.1,0.46807]
[1760257715273,1.32754464,3842.2,3842.1,0.46807]
[1760257716166,42.12754464,3842.2,3842.1,0.46807]
[1760257716675,0.8051,3841.8,3841.7,0.46812]
[1760257716883,0.8051,3841.3,3841.2,3.89488]
[1760257717174,1.32754464,3841.3,3841.2,0.46818]
[1760257717370,0.8051,3841.3,3841.2,0.46818]
[1760257717577,0.8051,3841.3,3841.2,0.68708]
[1760257717776,0.8051,3841.3,3841.2,1.25978]
[1760257725379,0.8051,3841.3,3841.2,0.92608]
[1760257727685,0.8051,3841.3,3841.2,1.27178]
[1760257730484,0.8051,3841.3,3841.2,0.92608]
[1760257730686,0.8051,3841.3,3841.2,1.27178]
[1760257732883,0.8051,3841.3,3841.2,0.46818]
[1760257733584,1.32754464,3841.3,3841.2,0.46818]
[1760257735190,1.32754464,3841.3,3841.2,0.68758]
[1760257735692,1.32754464,3841.3,3841.2,0.46818]
[1760257736790,1.32754464,3841.3,3841.2,0.68758]
[1760257737191,1.32754464,3841.3,3841.2,1.03328]
[1760257740283,3.2078,3841.6,3841.5,0.46814]
[1760257740493,3.666,3841.6,3841.5,1.25924]
[1760257740795,4.18844464,3841.6,3841.5,1.25924]
[1760257740986,4.53384464,3841.6,3841.5,1.25924]
[1760257746100,4.0114,3841.6,3841.5,1.40314]
[1760257746496,4.0114,3841.6,3841.5,1.25924]
[1760257746894,0.567,3842.1,3842.0,1.40308]
[1760257747097,0.52244464,3842.2,3842.1,0.91347]
[1760257747395,1.08944464,3842.2,3842.1,1.25917]
[1760257747997,1.32604464,3842.2,3842.1,1.25917]
[1760257767115,0.69022,3841.8,3841.7,0.4681]
[1760257767421,0.78,3841.4,3841.3,0.68886]
[1760257767618,1.30244464,3841.4,3841.3,0.68886]
[1760257767825,0.78,3841.4,3841.3,1.04066]
[1760257770126,1.30244464,3841.4,3841.3,1.04066]
[1760257770326,1.30244464,3841.4,3841.3,1.26826]
[1760257773427,0.46819,3841.2,3841.1,0.46818]
[1760257773625,1.30244464,3841.2,3841.1,0.46818]
[1760257774824,1.24823,3840.8,3840.6,3.2078]
[1760257775026,1.30244464,3840.8,3840.7,1.04275653]
[1760257775225,1.30244464,3840.8,3840.7,1.27035653]
[1760257775432,42.10244464,3840.8,3840.7,1.27035653]
[1760257776229,0.446,3841.3,3841.2,0.5725]
[1760257776430,1.6686586,3841.3,3841.2,1.26828]
[1760257776632,0.92231396,3841.3,3841.2,1.26828]
[1760257776831,1.25631396,3841.3,3841.2,1.26828]
[1760257777532,0.5561,3841.3,3841.2,1.26828]
[1760257777826,0.78,3841.3,3841.2,1.26828]
[1760257778033,0.78,3841.3,3841.2,0.91648]
[1760257778224,1.30244464,3841.3,3841.2,0.68888]
[1760257778426,1.77060464,3841.3,3841.2,0.46818]
[1760257778731,1.30244464,3841.3,3841.2,0.68888]
[1760257779926,1.30244464,3841.3,3841.2,1.02648]
[1760257780934,1.30244464,3841.3,3841.2,1.25158]
[1760257782637,0.78,3841.3,3841.2,1.25158]
[1760257784339,0.78,3841.3,3841.2,0.46818]
[1760257784537,1.30244464,3841.3,3841.2,0.46818]
[1760257784832,1.30244464,3841.3,3841.0,3.8984]
[1760257784833,0.8248,3841.1,3841.0,3.8984]
[1760257785032,1.34724464,3841.1,3841.0,4.2598]
[1760257785234,0.8248,3841.1,3841.0,4.2598]
[1760257785428,0.8248,3840.8,3840.7,0.69265653]
[1760257785634,0.8248,3840.8,3840.7,1.28615653]
[1760257789636,1.34724464,3840.8,3840.7,1.28615653]
[1760257789831,0.8248,3840.8,3840.7,0.69265653]
[1760257790037,1.34724464,3840.8,3840.7,0.69265653]
[1760257792033,1.34724464,3840.8,3840.7,1.05405653]
[1760257794737,1.34724464,3840.8,3840.7,1.28615653]
[1760257796140,1.34724464,3840.8,3840.7,0.47025653]
[1760257796741,1.34724464,3840.8,3840.7,0.69265653]
[1760257796943,1.34724464,3840.8,3840.7,1.05405653]
[1760257797745,1.34724464,3840.8,3840.7,1.28615653]
[1760257800051,0.3586,3841.1,3841.0,0.4682]
[1760257800347,0.8248,3841.1,3841.0,1.2841]
[1760257800549,2.05611601,3841.1,3841.0,1.2841]
[1760257800845,2.05611601,3841.1,3841.0,0.6906]
[1760257801647,2.05611601,3841.1,3841.0,0.4682]
[1760257801848,2.52430601,3841.1,3841.0,0.4682]
[1760257802045,2.52430601,3841.1,3840.7,0.00201653]
[1760257802046,1.29303,3840.8,3840.7,0.00201653]
[1760257802244,1.34724464,3840.8,3840.7,0.47025653]
[1760257804251,0.77104464,3840.8,3840.7,0.83165653]
[1760257804452,1.23724464,3840.8,3840.7,0.83165653]
[1760257804755,1.70547464,3840.8,3840.7,0.83165653]
[1760257807051,1.70547464,3840.8,3840.7,0.36341653]
[1760257807350,1.70547464,3840.8,3840.7,0.00201653]
[1760257807351,2.41474652,3840.8,3840.7,0.00201653]
[1760257808954,43.21474652,3840.8,3840.7,0.00201653]
[1760257810054,0.68891,3840.1,3840.0,0.4847]
[1760257810350,1.67815464,3840.1,3840.0,0.4847]
[1760257810544,1.67815464,3840.1,3840.0,0.3435]
[1760257810745,0.46835,3839.8,3839.7,3.2078]
[1760257810942,0.92537,3839.6,3839.2,3.2078]
[1760257811149,1.68104348,3839.6,3839.5,0.002457]
[1760257811555,42.48104348,3839.6,3839.5,0.002457]
[1760257811957,42.48104348,3839.6,3839.5,0.345957]
[1760257812755,42.48104348,3839.6,3839.5,0.814337]
[1760257812957,42.48104348,3839.6,3839.5,1.166537]
[1760257813259,40.80282884,3839.6,3839.5,1.401037]
[1760257813556,0.00282884,3839.6,3839.5,6.401037]
[1760257814149,0.00282884,3839.6,3839.5,1.401037]
[1760257814349,0.22342884,3839.6,3839.5,1.401037]
[1760257814653,0.00282884,3839.6,3839.5,1.401037]
[1760257815262,1.21267348,3839.6,3839.5,0.002457]
[1760257815448,1.21267348,3839.6,3839.5,0.345957]
[1760257815657,1.21267348,3839.6,3839.5,0.002457]
[1760257816057,9.42047348,3839.6,3839.5,0.002457]
[1760257816759,50.22047348,3839.6,3839.5,0.002457]
[1760257818961,50.22047348,3839.6,3839.5,0.698157]
[1760257818962,42.01267348,3839.6,3839.5,0.698157]
[1760257819156,42.01267348,3839.6,3839.5,0.477057]
[1760257819357,42.01267348,3839.6,3839.5,0.345957]
[1760257820961,42.48104348,3839.6,3839.5,0.345957]
[1760257821164,42.48104348,3839.6,3839.5,0.814337]
[1760257822163,42.48104348,3839.6,3839.5,0.002457]
[1760257822460,45.68884348,3839.6,3839.5,0.002457]
[1760257825661,42.01267348,3839.6,3839.5,1.166537]
[1760257825856,42.01267348,3839.6,3839.5,0.345957]
[1760257826066,42.48104348,3839.6,3839.5,0.345957]
[1760257827264,42.48104348,3839.6,3839.5,0.002457]
[1760257828377,46.39654715,3839.6,3839.5,0.002457]
[1760257828766,0.457,3838.9,3838.8,0.5646]
[1760257828969,0.6874,3838.9,3838.8,0.3435]
[1760257829162,0.6874,3838.9,3838.8,0.81197]
[1760257829163,1.15586,3838.9,3838.8,0.81197]
[1760257829364,0.52244464,3838.9,3838.6,0.3435]
[1760257829570,0.6874,3838.7,3838.6,0.81199]
[1760257829769,0.6874,3838.7,3838.6,0.81469548]
[1760257830369,0.6874,3838.7,3838.6,1.03579548]
[1760257830967,1.15588,3838.7,3838.6,0.81469548]
[1760257831865,1.67832464,3838.7,3838.6,0.81469548]
[1760257833666,1.67832464,3838.7,3838.6,0.00270548]
[1760257833873,1.67832464,3838.7,3838.4,0.46851]
[1760257833874,0.457,3837.9,3837.8,0.36955659]
[1760257834072,1.20984464,3837.9,3837.8,1.05924659]
[1760257834371,1.20984464,3837.9,3837.8,0.02605659]
[1760257834876,1.20984464,3837.9,3837.8,0.0289481]
[1760257835068,42.47842464,3837.9,3837.8,0.0289481]
[1760257835266,45.68622464,3837.9,3837.8,0.0289481]
[1760257839669,3.2078,3838.3,3838.2,0.46854]
[1760257839870,3.2078,3838.8,3838.7,0.46848]
[1760257840075,4.21364464,3838.8,3838.7,1.25398]
[1760257840267,44.95967,3838.8,3838.7,0.344]
[1760257840469,44.95967,3838.8,3838.0,0.1354]
[1760257840470,0.9519,3838.6,3838.0,0.1354]
[1760257840773,0.4834,3838.0,3837.8,0.0289481]
[1760257840971,0.46858,3837.9,3837.8,0.0289481]
[1760257841172,1.47442464,3837.9,3837.8,0.0289481]
[1760257841368,1.70492464,3837.9,3837.8,0.0289481]
[1760257841771,0.4834,3837.0,3836.9,0.5624]
[1760257842674,0.714,3837.0,3836.9,0.34671718]
[1760257843385,1.23644464,3837.0,3836.9,0.00271718]
[1760257843580,4.44424464,3837.0,3836.9,0.00271718]
[1760257844476,1.00584464,3837.0,3836.9,0.58561718]
[1760257844780,4.44424464,3837.0,3836.9,0.00271718]
[1760257846380,1.23644464,3837.0,3836.9,0.36311718]
[1760257846585,0.4834,3837.0,3836.9,0.82541718]
[1760257847384,0.714,3837.0,3836.9,0.36311718]
[1760257847885,0.714,3837.0,3836.9,0.83181718]
[1760257848186,0.4834,3837.0,3836.9,1.29411718]
[1760257851282,0.2416,3837.0,3836.9,1.29411718]
[1760257851487,0.2416,3837.0,3836.9,4.50191718]
[1760257852082,41.2415,3837.4,3837.3,1.29135]
[1760257852780,41.4721,3837.4,3837.3,1.05155]
[1760257854479,3.8799,3837.8,3837.7,0.6911]
[1760257854682,3.8799,3837.8,3837.7,0.829]
[1760257854884,0.6721,3837.8,3837.7,0.829]
[1760257857990,0.6721,3837.8,3837.7,1.0515]
[1760257858694,0.6721,3837.8,3837.7,0.829]
[1760257860187,0.6721,3837.8,3837.7,1.0515]
[1760257861183,0.6721,3837.8,3837.7,0.829]
[1760257861385,1.38252638,3837.8,3837.7,0.829]
[1760257861889,0.6721,3837.8,3837.7,0.4686]
[1760257862095,1.38252373,3837.8,3837.7,0.829]
[1760257862397,1.38277586,3837.8,3837.7,0.829]
[1760257862790,1.38277586,3837.8,3837.5,0.1397]
[1760257862791,0.2306,3837.7,3837.5,0.82902]
[1760257863092,0.6721,3837.4,3837.3,3.67645]
[1760257863486,0.6721,3837.4,3837.3,3.2078]
[1760257863692,0.91015,3837.3,3837.2,0.46866]
[1760257863891,0.96394464,3837.3,3837.2,0.82906]
[1760257864192,1.9055862,3837.3,3837.2,0.46866]
[1760257864391,1.19454464,3837.3,3837.2,0.46866]
[1760257864595,1.66319464,3837.3,3837.2,0.46866]
[1760257864794,1.14076,3837.2,3837.1,0.46867]
[1760257865091,1.66320464,3837.2,3837.1,0.46867]
[1760257865394,1.19454464,3837.2,3837.1,0.46867]
[1760257865594,0.6721,3837.1,3837.0,0.46868]
[1760257865792,0.91779,3837.0,3836.9,3.21051718]
[1760257866097,2.46040159,3837.0,3836.9,0.00271718]
[1760257866790,43.26040159,3837.0,3836.9,0.00271718]
[1760257867196,42.70571159,3837.0,3836.9,0.47141718]
[1760257867398,41.4721,3837.0,3836.9,0.83181718]
[1760257867690,41.2415,3837.0,3836.9,1.29411718]
[1760257868396,41.4721,3837.0,3836.9,1.29411718]
[1760257868598,41.2415,3837.0,3836.9,1.29411718]
[1760257869101,0.2185,3837.0,3836.9,1.29411718]
[1760257869896,0.4572,3837.0,3836.9,1.29411718]
[1760257870197,0.4572,3837.0,3836.9,0.00271718]
[1760257870198,1.15659,3837.0,3836.9,0.00271718]
[1760257870402,1.67903464,3837.0,3836.9,0.00271718]
[1760257870591,2.39053563,3837.0,3836.9,0.00271718]
[1760257871198,2.39053563,3837.0,3836.9,0.47141718]
[1760257871502,1.21034464,3837.0,3836.9,1.03641718]
[1760257872098,0.4572,3837.0,3836.9,1.27121718]
[1760257872995,41.4882,3837.4,3837.3,0.46865]
[1760257873194,0.93128327,3837.4,3837.3,1.26845]
[1760257873405,4.13388,3837.9,3837.8,0.46859]
[1760257873705,45.87705688,3837.9,3837.8,0.80409]
[1760257873892,46.39950152,3837.9,3837.8,0.80409]
[1760257874604,0.6882,3837.6,3837.5,0.46862]
[1760257874803,1.92312152,3837.6,3837.5,0.46862]
[1760257875193,1.92312152,3837.6,3837.5,0.80412]
[1760257875800,1.21064464,3837.6,3837.5,0.80412]
[1760257876002,42.01064464,3837.6,3837.5,0.80412]
[1760257876306,42.01064464,3837.6,3837.5,0.23362]
[1760257877003,42.01064464,3837.6,3837.5,0.70224]
[1760257877300,42.01064464,3837.6,3837.5,0.46862]
[1760257878608,42.01064464,3837.6,3837.5,0.80412]
[1760257878800,42.01064464,3837.6,3837.5,1.03362]
[1760257879608,42.01064464,3837.6,3837.5,0.46862]
[1760257879904,42.72332422,3837.6,3837.5,0.46862]
[1760257881399,42.72332422,3837.6,3837.5,1.03362]
[1760257882106,42.72332422,3837.6,3837.5,0.69812]
[1760257882406,42.72332422,3837.6,3837.5,0.46862]
[1760257883206,42.01064464,3837.6,3837.5,0.46862]
[1760257885711,42.01064464,3837.6,3837.5,0.80412]
[1760257886211,42.01064464,3837.6,3837.5,1.03362]
[1760257888910,42.01064464,3837.6,3837.5,0.46862]
[1760257890810,42.01064464,3837.6,3837.5,0.80412]
[1760257891008,42.01064464,3837.6,3837.5,1.03362]
[1760257891506,41.4882,3837.6,3837.5,1.03362]
[1760257891711,41.4882,3837.6,3837.5,1.26842]
[1760257892012,41.4882,3837.6,3837.5,1.03362]
[1760257892206,42.01064464,3837.6,3837.5,0.46862]
[1760257892402,0.9307,3837.0,3836.9,0.47141718]
[1760257892807,2.63484948,3837.0,3836.9,0.00271718]
[1760257893007,43.43484948,3837.0,3836.9,0.00271718]
[1760257893309,42.96615948,3837.0,3836.9,0.47141718]
[1760257895314,42.25314464,3837.0,3836.9,0.47141718]
[1760257895813,42.96586343,3837.0,3836.9,0.47141718]
[1760257896317,42.25314464,3837.0,3836.9,0.47141718]
[1760257896516,43.43454904,3837.0,3836.9,0.00271718]
[1760257897015,42.96585904,3837.0,3836.9,0.47141718]
[1760257897210,42.25314464,3837.0,3836.9,0.47141718]
[1760257901621,42.72183464,3837.0,3836.9,0.00271718]
[1760257901921,43.43383075,3837.0,3836.9,0.00271718]
[1760257902124,42.72183464,3837.0,3836.9,0.00271718]
[1760257902717,43.43375052,3837.0,3836.9,0.00271718]
[1760257906430,42.96506052,3837.0,3836.9,0.47141718]
[1760257907132,42.25314464,3837.0,3836.9,0.47141718]
[1760257907828,43.43348034,3837.0,3836.9,0.47141718]
[1760257908031,42.25314464,3837.0,3836.9,0.47141718]
[1760257909031,42.72183464,3837.0,3836.9,0.47141718]
[1760257910526,41.5945,3837.0,3836.9,1.28821718]
[1760257910722,41.0188,3837.0,3836.9,6.28821718]
[1760257911032,40.8,3837.0,3836.9,6.28821718]
[1760257911830,41.612,3837.0,3836.9,1.05981718]
[1760257912031,41.7499,3837.0,3836.9,1.05981718]
[1760257912332,41.612,3837.0,3836.9,1.05981718]
[1760257913135,41.7499,3837.0,3836.9,1.05981718]
[1760257913731,41.7499,3837.0,3836.9,0.70421718]
[1760257914030,41.7499,3837.0,3836.9,0.47141718]
[1760257918642,41.7499,3837.0,3836.9,1.05981718]
[1760257918831,41.7499,3837.0,3836.9,0.47141718]
[1760257921242,40.8,3837.0,3836.9,4.49601718]
[1760257921437,41.7499,3837.0,3836.9,3.67921718]
[1760257921736,0.6159,3836.5,3836.4,3.2078]
[1760257921935,0.812,3836.5,3836.4,4.26496]
[1760257922346,41.7499,3836.5,3836.4,4.26496]
[1760257922740,41.75310031,3836.5,3836.4,4.26761726]
[1760257923144,41.75310031,3836.5,3836.4,3.67921726]
[1760257924944,42.74429495,3836.5,3836.4,0.00265726]
[1760257925138,43.4573032,3836.5,3836.4,0.00265726]
[1760257929651,42.9885532,3836.5,3836.4,0.47141726]
[1760257930941,41.75310031,3836.5,3836.4,0.47141726]
[1760257934058,42.27554495,3836.5,3836.4,0.47141726]
[1760257934352,42.27554495,3836.5,3835.9,3.2078]
[1760257934353,0.46878,3836.3,3835.9,3.2078]
[1760257934548,42.6557538,3836.5,3835.6,1.51445]
[1760257934549,0.8132,3835.7,3835.6,1.04486]
[1760257935056,41.6132,3835.7,3835.6,0.46886]
[1760257935249,41.78904464,3835.7,3835.5,3.2078]
[1760257935447,0.8132,3835.6,3835.5,3.6785754]
[1760257935948,0.8132,3835.6,3835.5,0.4707754]
[1760257936152,41.6132,3835.6,3835.5,0.0019054]
[1760257936354,42.13564464,3835.6,3835.5,0.0019054]
[1760257936956,42.13564464,3835.6,3835.5,0.4707754]
[1760257939250,41.6132,3835.6,3835.5,1.0467754]
[1760257939555,41.6132,3835.6,3835.5,0.4707754]
[1760257940057,42.13564464,3835.6,3835.5,0.0019054]
[1760257940254,42.60450464,3835.6,3835.5,0.4707754]
[1760257940455,42.13564464,3835.6,3835.5,0.4707754]
[1760257942259,42.60450464,3835.6,3835.5,0.0019054]
[1760257942554,42.13564464,3835.6,3835.5,0.4707754]
[1760257943263,42.60450464,3835.6,3835.5,0.4707754]
[1760257943453,42.60450464,3835.6,3835.5,0.0019054]
[1760257945761,42.13564464,3835.6,3835.5,0.4707754]
[1760257960274,42.85025783,3835.6,3835.5,0.4707754]
[1760257960574,42.85025699,3835.6,3835.5,0.4707754]
[1760257961368,42.32781235,3835.6,3835.5,0.7997754]
[1760257961562,40.8,3835.6,3835.5,9.5826754]
[1760257961762,1.54073294,3836.5,3835.5,9.5826754]
[1760257961763,0.34920031,3836.5,3836.4,0.46876]
[1760257961967,0.22820031,3836.5,3836.4,1.23916]
[1760257962169,0.79900031,3836.5,3836.4,1.23916]
[1760257962772,41.59900031,3836.5,3836.4,1.23916]
[1760257962971,41.59900031,3836.5,3836.4,0.7704]
[1760257963169,0.346,3836.1,3836.0,0.329]
[1760257963374,0.7958,3836.1,3836.0,0.5482]
[1760257963577,0.346,3836.0,3835.8,0.329]
[1760257963771,0.8036,3835.9,3835.8,0.79782]
[1760257964275,0.8036,3835.9,3835.8,1.01722]
[1760257964574,41.6036,3835.9,3835.8,1.24422]
[1760257965469,41.6036,3835.9,3835.7,3.2078]
[1760257965470,0.70954,3835.8,3835.7,3.2078]
[1760257965665,1.32604464,3835.8,3835.7,0.46885]
[1760257965972,1.27244,3835.8,3835.7,0.46885]
[1760257966676,1.27246,3835.6,3835.5,0.0019054]
[1760257966878,1.79490464,3835.6,3835.5,0.0019054]
[1760257967073,42.07246,3835.6,3835.5,0.0019054]
[1760257967274,42.59490464,3835.6,3835.5,0.0019054]
[1760257967673,42.59490464,3835.6,3835.5,0.4707754]
[1760257968578,42.12604464,3835.6,3835.5,0.4707754]
[1760257968779,41.6036,3835.6,3835.5,1.0216754]
[1760257969878,42.59490464,3835.6,3835.5,0.0019054]
[1760257972585,42.12604464,3835.6,3835.5,0.0019054]
[1760257972881,42.59490464,3835.6,3835.5,0.4707754]
[1760257973082,42.59490464,3835.6,3835.5,0.0019054]
[1760257974574,42.59490464,3835.6,3835.5,0.4707754]
[1760257974575,41.6036,3835.6,3835.5,0.4707754]
[1760257974773,41.6036,3835.6,3835.5,1.2486754]
[1760257976489,40.8,3835.6,3835.5,1.3918754]
[1760257976685,40.8,3835.6,3835.5,6.3918754]
[1760257980883,41.6036,3835.6,3835.5,0.4707754]
[1760257981084,42.12604464,3835.6,3835.5,0.4707754]
[1760257981390,42.12604464,3835.6,3835.5,0.8022754]
[1760257983482,42.12604464,3835.6,3835.5,0.4707754]
[1760257984290,42.59490464,3835.6,3835.5,0.4707754]
[1760257985785,42.59490464,3835.6,3835.5,0.0019054]
[1760257988183,43.30744169,3835.6,3835.5,0.0019054]
[1760257992092,0.70765,3834.9,3834.8,0.46896]
[1760257992397,1.35874464,3834.9,3834.8,0.46896]
[1760257992600,0.8363,3834.9,3834.8,0.46896]
[1760257992894,41.6363,3834.9,3834.8,0.46896]
[1760257993097,41.6363,3834.9,3834.8,0.47183451]
[1760257994797,42.10524,3834.9,3834.8,0.47183451]
[1760257995096,41.6363,3834.9,3834.8,0.47183451]
[1760257995591,42.62768464,3834.9,3834.8,0.00287451]
[1760257995793,43.33942056,3834.9,3834.8,0.00287451]
[1760257996188,0.46899,3834.6,3834.3,0.46902]
[1760257996393,0.8363,3834.4,3834.3,0.46902]
[1760257996895,0.8363,3834.2,3834.1,3.67684]
[1760257997293,0.8363,3834.2,3834.1,3.67942624]
[1760257997494,42.10533,3834.2,3834.1,3.67942624]
[1760257997894,42.62777464,3834.2,3834.1,3.67942624]
[1760257998790,41.6363,3834.2,3834.1,4.47502624]
[1760257998991,41.6363,3834.2,3834.1,4.25612624]
[1760257999296,41.6363,3834.2,3834.1,4.02012624]
[1760257999491,41.6363,3834.2,3834.1,3.67942624]
[1760257999897,42.10533,3834.2,3834.1,3.67942624]
[1760258000190,42.62777464,3834.2,3834.1,3.67942624]
[1760258000798,42.62777464,3834.2,3834.1,3.71492354]
[1760258002301,42.15874464,3834.2,3834.1,3.71492354]
[1760258003701,42.15874464,3834.2,3834.1,0.50712354]
[1760258004102,42.62777464,3834.2,3834.1,0.50712354]
[1760258005005,42.15874464,3834.2,3834.1,0.50712354]
[1760258006503,42.15874464,3834.2,3834.1,0.84782354]
[1760258007104,42.15874464,3834.2,3834.1,0.50712354]